[Event "41st Arco Open 2019"]
[Site "Arco"]
[Date "2019.10.05"]
[Round "2"]
[White "Verrascina, Roberto"]
[Black "Halkias, Stelios"]
[Result "0-1"]
[ECO "D02"]
[WhiteElo "2071"]
[BlackElo "2530"]
[Annotator "ChessBase"]
[PlyCount "73"]
[EventDate "2019.10.04"]
[EventType "swiss"]
[EventCountry "ITA"]
[SourceTitle "playchess.com"]
[Source "ChessBase"]
[SourceQuality "1"]
[TimeControl "40/5400+30:1800+30"]

1. g3 {[%emt 0:00:30]} d5 {[%emt 0:00:30]} 2. Bg2 {[%emt 0:00:30]} c6 {[%emt 0:00:30]} 3. Nf3 {[%emt 0:00:30]} Bg4 {[%emt 0:00:30]} 4. O-O {[%emt 0:01:30]} Nd7 {[%emt 0:00:30]} 5. d4 {[%emt 0:00:30]} e6 {[%emt 0:01:30]} 6. Nbd2 Ngf6 {[%emt 0:00:30]} 7. b3 {[%emt 0:11:00]} a5 {[%emt 0:02:30]} 8. a4 {[%emt 0:00:00]} Be7 {[%emt 0:01:30]} 9. Bb2 {[%emt 0:04:00]} Bh5 {[%emt 0:04:30]} 10. Re1 {[%emt 0:01:30]} O-O {[%emt 0:01:30]} 11. h3 {[%emt 0:07:30]} c5 {[%emt 0:12:30]} 12. e3 {[%emt 0:06:30]} Rc8 {[%emt 0:02:30]} 13. g4 {[%emt 0:06:30]} Bg6 {[%emt 0:11:30]} 14. Ne5 {[%emt 0:00:30]} Bxc2 {[%emt 0:00:00]} 15. Qe2 {[%emt 0:00:30]} cxd4 {[%emt 0:00:00]} 16. exd4 {[%emt 0:04:30]} Nxe5 {[%emt 0:02:30]} 17. dxe5 Nd7 {[%emt 0:00:00]} 18. Nf3 {[%emt 0:11:00]} Bxb3 {[%emt 0:06:00]} 19. Nd4 {[%emt 0:03:30]} Bc4 {[%emt 0:00:30]} 20. Qe3 {[%emt 0:00:30]} Ba6 21. f4 {[%emt 0:03:30]} Nb6 {[%emt 0:09:00]} 22. f5 Nc4 {[%emt 0:00:30]} 23. Qb3 {[%emt 0:08:00]} Bc5 {[%emt 0:06:30]} 24. Kh1 Qb6 {[%emt 0:02:30]} 25. Nb5 {[%emt 0:05:00]} Bxb5 {[%emt 0:01:30]} 26. axb5 {[%emt 0:01:30]} Nxb2 {[%emt 0:00:30]} 27. Qxb2 {[%emt 0:00:30]} Bd4 28. Qd2 {[%emt 0:01:30]} Bc3 {[%emt 0:01:00]} 29. Qf4 {[%emt 0:00:00]} Qd4 {[%emt 0:01:30]} 30. Qg5 {[%emt 0:06:56]} h6 {[%emt 0:00:30]} 31. Qh5 {[%emt 0:01:16]} Bxe1 {[%emt 0:00:30]} 32. Rxe1 {[%emt 0:00:50]} Qf4 {[%emt 0:00:30]} 33. fxe6 {[%emt 0:03:12]} fxe6 {[%emt 0:00:30]} 34. Qg6 Qf7 {[%emt 0:01:30]} 35. Qd3 {[%emt 0:02:32]} a4 {[%emt 0:22:49]} 36. h4 {[%emt 0:03:33]} Qf2 {[%emt 0:00:00]} 37. Qd1 {[%emt 0:00:30]} 0-1

[Event "41st Arco Open 2019"]
[Site "Arco"]
[Date "2019.10.05"]
[Round "2"]
[White "Sorcinelli, Francesco"]
[Black "Horvath, Jozsef"]
[Result "1-0"]
[ECO "B12"]
[WhiteElo "2065"]
[BlackElo "2450"]
[Annotator "ChessBase"]
[PlyCount "78"]
[EventDate "2019.10.04"]
[EventType "swiss"]
[EventCountry "ITA"]
[SourceTitle "playchess.com"]
[Source "ChessBase"]
[SourceQuality "1"]
[TimeControl "40/5400+30:1800+30"]

1. e4 {[%emt 0:00:30]} c6 {[%emt 0:00:30]} 2. d4 {[%emt 0:00:30]} d5 {[%emt 0:00:00]} 3. e5 {[%emt 0:00:00]} Bf5 {[%emt 0:01:00]} 4. Nf3 {[%emt 0:01:00]} e6 5. Be2 {[%emt 0:01:30]} Ne7 {[%emt 0:01:00]} 6. O-O c5 {[%emt 0:53:30]} 7. dxc5 {[%emt 0:03:00]} Nec6 {[%emt 0:00:00]} 8. Be3 Nd7 {[%emt 0:00:00]} 9. Bb5 {[%emt 0:18:00]} Bg4 {[%emt 0:00:00]} 10. h3 {[%emt 0:07:30]} Bxf3 {[%emt 0:00:00]} 11. Qxf3 {[%emt 0:00:00]} Bxc5 12. Bxc5 {[%emt 0:01:00]} Nxc5 {[%emt 0:00:00]} 13. Bxc6+ {[%emt 0:00:00]} bxc6 {[%emt 0:00:00]} 14. Nd2 {[%emt 0:15:00]} O-O {[%emt 0:00:00]} 15. Nb3 {[%emt 0:00:30]} Na4 {[%emt 0:00:00]} 16. Rab1 {[%emt 0:10:30]} c5 {[%emt 0:05:00]} 17. Qg4 {[%emt 0:02:30]} Qe8 {[%emt 0:00:00]} 18. c4 {[%emt 0:05:30]} Rb8 {[%emt 0:00:00]} 19. cxd5 {[%emt 0:00:30]} exd5 {[%emt 0:00:00]} 20. f4 {[%emt 0:00:00]} Rb4 {[%emt 0:00:00]} 21. Qf3 {[%emt 0:10:00]} Qe6 {[%emt 0:04:30]} 22. Rbe1 {[%emt 0:00:30]} Qb6 {[%emt 0:07:30]} 23. f5 {[%emt 0:09:01]} c4+ {[%emt 0:13:36]} 24. Kh1 {[%emt 0:00:05]} cxb3 {[%emt 0:00:00]} 25. f6 {[%emt 0:07:10]} Qe6 {[%emt 0:00:00]} 26. Qg3 {[%emt 0:00:00]} g6 {[%emt 0:06:06]} 27. Qe3 {[%emt 0:00:00]} Kh8 {[%emt 0:04:58]} 28. axb3 {[%emt 0:04:41]} Nxb2 {[%emt 0:01:17]} 29. Qc3 {[%emt 0:00:55]} Rfb8 {[%emt 0:00:36]} 30. Qxb2 {[%emt 0:00:11]} Rxb3 {[%emt 0:01:15]} 31. Qd2 {[%emt 0:02:31]} Rg8 {[%emt 0:01:46]} 32. Qg5 {[%emt 0:01:26]} Rb4 {[%emt 0:00:00]} 33. Rb1 {[%emt 0:01:55]} Re4 {[%emt 0:03:06]} 34. Rbe1 {[%emt 0:00:22]} Rc4 {[%emt 0:00:37]} 35. Rb1 {[%emt 0:00:23]} Re4 {[%emt 0:00:23]} 36. Rbe1 {[%emt 0:00:12]} Qc6 {[%emt 0:00:42]} 37. Rxe4 {[%emt 0:01:03]} dxe4 {[%emt 0:00:33]} 38. Rf4 {[%emt 0:00:23]} Qc1+ {[%emt 0:00:00]} 39. Kh2 {[%emt 0:00:05]} a5 {[%emt 0:00:28]} 1-0

[Event "41st Arco Open 2019"]
[Site "Arco"]
[Date "2019.10.05"]
[Round "2"]
[White "Fehr, Axel"]
[Black "Sarkar, Justin"]
[Result "0-1"]
[ECO "C78"]
[WhiteElo "2045"]
[BlackElo "2350"]
[Annotator "ChessBase"]
[PlyCount "62"]
[EventDate "2019.10.04"]
[EventType "swiss"]
[EventCountry "ITA"]
[SourceTitle "playchess.com"]
[Source "ChessBase"]
[SourceQuality "1"]
[TimeControl "40/5400+30:1800+30"]

1. e4 {[%emt 0:00:30]} e5 {[%emt 0:00:30]} 2. Nf3 {[%emt 0:00:00]} Nc6 {[%emt 0:00:00]} 3. Bb5 {[%emt 0:00:00]} a6 {[%emt 0:02:00]} 4. Ba4 {[%emt 0:00:30]} Nf6 5. O-O {[%emt 0:00:00]} b5 {[%emt 0:17:00]} 6. Bb3 {[%emt 0:00:00]} Bc5 {[%emt 0:00:30]} 7. c3 {[%emt 0:03:30]} d6 {[%emt 0:03:30]} 8. a4 {[%emt 0:24:30]} Rb8 {[%emt 0:05:30]} 9. Na3 {[%emt 0:00:00]} O-O {[%emt 0:04:30]} 10. axb5 {[%emt 0:00:00]} axb5 {[%emt 0:00:00]} 11. d4 {[%emt 0:04:30]} Bxa3 12. bxa3 {[%emt 0:07:30]} Nxe4 {[%emt 0:10:30]} 13. Qe1 {[%emt 0:02:30]} Nf6 14. dxe5 {[%emt 0:03:30]} Re8 {[%emt 0:04:00]} 15. exf6 {[%emt 0:00:30]} Rxe1 {[%emt 0:00:00]} 16. Rxe1 {[%emt 0:27:30]} Bg4 {[%emt 0:17:00]} 17. Ng5 {[%emt 0:00:30]} d5 {[%emt 0:00:30]} 18. fxg7 {[%emt 0:10:55]} h6 19. h3 {[%emt 0:00:11]} Bh5 {[%emt 0:03:00]} 20. g4 {[%emt 0:00:00]} Bg6 {[%emt 0:12:19]} 21. Nf3 {[%emt 0:03:18]} Na5 {[%emt 0:12:48]} 22. Bd1 {[%emt 0:04:13]} Qf6 {[%emt 0:00:00]} 23. Bxh6 {[%emt 0:00:00]} Be4 {[%emt 0:00:00]} 24. Bg5 {[%emt 0:03:06]} Qxc3 {[%emt 0:03:17]} 25. Rc1 {[%emt 0:00:11]} Qxa3 {[%emt 0:00:00]} 26. Nd4 {[%emt 0:00:00]} Qxh3 {[%emt 0:00:00]} 27. f3 {[%emt 0:04:50]} Qg3+ {[%emt 0:04:51]} 28. Kf1 {[%emt 0:00:01]} Bd3+ {[%emt 0:00:00]} 29. Be2 {[%emt 0:00:00]} Nb3 {[%emt 0:00:00]} 30. Bxd3 {[%emt 0:01:08]} Nxd4 {[%emt 0:02:27]} 31. Be2 {[%emt 0:01:19]} Nxf3 {[%emt 0:00:30]} 0-1

[Event "41st Arco Open 2019"]
[Site "Arco"]
[Date "2019.10.05"]
[Round "2"]
[White "Lang, Alexander"]
[Black "Molnar, Bela"]
[Result "0-1"]
[ECO "A42"]
[WhiteElo "2032"]
[BlackElo "2305"]
[Annotator "ChessBase"]
[PlyCount "78"]
[EventDate "2019.10.04"]
[EventType "swiss"]
[EventCountry "ITA"]
[SourceTitle "playchess.com"]
[Source "ChessBase"]
[SourceQuality "1"]
[TimeControl "40/5400+30:1800+30"]

1. d4 {[%emt 0:00:30]} d6 {[%emt 0:00:30]} 2. Nf3 {[%emt 0:00:30]} g6 {[%emt 0:00:30]} 3. c4 {[%emt 0:00:30]} Bg7 {[%emt 0:00:00]} 4. Nc3 {[%emt 0:00:00]} Nd7 5. e4 {[%emt 0:00:00]} e5 {[%emt 0:00:30]} 6. d5 {[%emt 0:00:30]} a5 {[%emt 0:00:30]} 7. Bd3 {[%emt 0:03:30]} Nc5 {[%emt 0:02:30]} 8. Bc2 {[%emt 0:00:30]} Ne7 {[%emt 0:01:30]} 9. Be3 {[%emt 0:02:30]} O-O {[%emt 0:00:30]} 10. Qd2 {[%emt 0:00:30]} b6 {[%emt 0:01:30]} 11. Bh6 {[%emt 0:05:30]} Bd7 {[%emt 0:02:30]} 12. h4 {[%emt 0:02:30]} f6 {[%emt 0:00:30]} 13. O-O-O {[%emt 0:08:30]} Qe8 14. Rdg1 {[%emt 0:02:30]} b5 {[%emt 0:12:00]} 15. g4 bxc4 {[%emt 0:00:30]} 16. Be3 {[%emt 0:07:00]} Nd3+ {[%emt 0:04:30]} 17. Bxd3 cxd3 {[%emt 0:00:30]} 18. Qxd3 {[%emt 0:00:00]} a4 {[%emt 0:02:30]} 19. h5 {[%emt 0:02:30]} Rf7 {[%emt 0:02:30]} 20. Nd2 {[%emt 0:08:30]} g5 {[%emt 0:14:30]} 21. Ndb1 {[%emt 0:02:30]} h6 {[%emt 0:00:30]} 22. f3 {[%emt 0:01:30]} c6 {[%emt 0:00:30]} 23. Na3 {[%emt 0:01:30]} cxd5 {[%emt 0:00:30]} 24. Nxd5 {[%emt 0:00:00]} Nxd5 {[%emt 0:00:30]} 25. Qxd5 {[%emt 0:00:00]} Be6 {[%emt 0:00:30]} 26. Qb5 {[%emt 0:00:30]} Rc7+ {[%emt 0:03:30]} 27. Kb1 {[%emt 0:02:30]} Qf7 {[%emt 0:01:30]} 28. Rc1 {[%emt 0:01:30]} Rb7 {[%emt 0:00:00]} 29. Qc6 {[%emt 0:00:30]} d5 {[%emt 0:00:00]} 30. Rc5 {[%emt 0:04:30]} d4 {[%emt 0:03:30]} 31. Rb5 {[%emt 0:01:30]} Rba7 {[%emt 0:03:30]} 32. Bd2 {[%emt 0:01:30]} Bd7 {[%emt 0:00:00]} 33. Qb6 {[%emt 0:00:30]} Bf8 {[%emt 0:03:00]} 34. Rc5 {[%emt 0:02:30]} Bxc5 {[%emt 0:00:30]} 35. Qxc5 {[%emt 0:00:00]} Rb7 {[%emt 0:00:00]} 36. Rc1 {[%emt 0:03:00]} Rab8 {[%emt 0:00:00]} 37. Nc4 {[%emt 0:00:30]} Be6 {[%emt 0:00:00]} 38. b4 axb3 {[%emt 0:04:00]} 39. a3 {[%emt 0:03:00]} Rc7 {[%emt 0:00:00]} 0-1

[Event "41st Arco Open 2019"]
[Site "Arco"]
[Date "2019.10.05"]
[Round "2"]
[White "Steiger, Michael"]
[Black "Sedina, Elena"]
[Result "1/2-1/2"]
[ECO "A29"]
[WhiteElo "2015"]
[BlackElo "2294"]
[Annotator "ChessBase"]
[PlyCount "83"]
[EventDate "2019.10.04"]
[EventType "swiss"]
[EventCountry "ITA"]
[SourceTitle "playchess.com"]
[Source "ChessBase"]
[SourceQuality "1"]
[TimeControl "40/5400+30:1800+30"]

1. c4 {[%emt 0:00:30]} e5 {[%emt 0:02:30]} 2. g3 {[%emt 0:00:30]} Nc6 {[%emt 0:00:00]} 3. Bg2 {[%emt 0:00:30]} Bc5 {[%emt 0:13:00]} 4. Nc3 {[%emt 0:02:30]} a6 5. Nf3 {[%emt 0:06:30]} d6 {[%emt 0:07:00]} 6. O-O {[%emt 0:05:30]} Nf6 {[%emt 0:00:30]} 7. d3 {[%emt 0:02:30]} h6 {[%emt 0:04:30]} 8. a3 {[%emt 0:11:30]} O-O {[%emt 0:02:30]} 9. b4 {[%emt 0:00:00]} Ba7 {[%emt 0:00:00]} 10. Bb2 {[%emt 0:00:00]} Nd4 {[%emt 0:03:00]} 11. e3 {[%emt 0:00:00]} Nxf3+ 12. Bxf3 {[%emt 0:00:00]} c6 {[%emt 0:07:00]} 13. d4 {[%emt 0:02:30]} Qe7 14. d5 {[%emt 0:15:30]} cxd5 {[%emt 0:34:00]} 15. Nxd5 {[%emt 0:26:30]} Nxd5 {[%emt 0:00:30]} 16. Qxd5 {[%emt 0:00:00]} Bb8 {[%emt 0:07:06]} 17. Rfd1 {[%emt 0:00:00]} Bc7 {[%emt 0:08:08]} 18. Rac1 {[%emt 0:00:00]} Rd8 19. e4 {[%emt 0:15:39]} Rb8 {[%emt 0:04:15]} 20. Rd2 Be6 {[%emt 0:00:58]} 21. Qd3 {[%emt 0:00:50]} Rbc8 22. Rdc2 {[%emt 0:00:35]} Bb6 {[%emt 0:01:02]} 23. Be2 f6 {[%emt 0:02:10]} 24. Qd1 {[%emt 0:02:08]} Qf7 {[%emt 0:00:00]} 25. Bg4 {[%emt 0:00:14]} f5 {[%emt 0:03:04]} 26. Bxf5 {[%emt 0:07:19]} Bxf5 {[%emt 0:00:02]} 27. exf5 {[%emt 0:00:00]} Qxf5 {[%emt 0:00:00]} 28. Kg2 {[%emt 0:00:00]} Kh8 {[%emt 0:01:07]} 29. Qd5 {[%emt 0:01:53]} Rd7 {[%emt 0:00:46]} 30. Re2 {[%emt 0:00:00]} Rf8 {[%emt 0:00:00]} 31. Rcc2 {[%emt 0:00:00]} Bd8 {[%emt 0:01:34]} 32. Qe4 {[%emt 0:02:01]} Qf7 {[%emt 0:00:00]} 33. Qd5 {[%emt 0:00:00]} Qxd5+ {[%emt 0:00:00]} 34. cxd5 {[%emt 0:00:00]} Bb6 {[%emt 0:00:00]} 35. Bc1 {[%emt 0:01:47]} Kg8 {[%emt 0:02:14]} 36. Be3 {[%emt 0:00:00]} Bxe3 {[%emt 0:00:00]} 37. fxe3 {[%emt 0:00:00]} Rdf7 {[%emt 0:00:47]} 38. Rc1 {[%emt 0:01:33]} Rf3 {[%emt 0:00:46]} 39. Rc7 {[%emt 0:00:00]} R8f7 {[%emt 0:00:00]} 40. Rxf7 {[%emt 0:00:00]} Rxf7 {[%emt 0:00:19]} 41. Rc2 {[%emt 0:03:01]} e4 {[%emt 0:02:42]} 42. Rc4 {[%emt 0:00:30]} 1/2-1/2

[Event "41st Arco Open 2019"]
[Site "Arco"]
[Date "2019.10.05"]
[Round "2"]
[White "De Vita, Gianni"]
[Black "Bifulco, Michel"]
[Result "1/2-1/2"]
[ECO "C55"]
[WhiteElo "2011"]
[BlackElo "2261"]
[Annotator "ChessBase"]
[PlyCount "56"]
[EventDate "2019.10.04"]
[EventType "swiss"]
[EventCountry "ITA"]
[SourceTitle "playchess.com"]
[Source "ChessBase"]
[SourceQuality "1"]
[TimeControl "40/5400+30:1800+30"]

1. e4 {[%emt 0:00:30]} e5 {[%emt 0:00:30]} 2. Nf3 {[%emt 0:00:30]} Nc6 {[%emt 0:01:30]} 3. Bc4 {[%emt 0:01:30]} Nf6 {[%emt 0:00:00]} 4. d3 {[%emt 0:00:30]} h6 5. Nc3 {[%emt 0:02:30]} d6 {[%emt 0:00:00]} 6. h3 {[%emt 0:01:30]} g5 {[%emt 0:00:00]} 7. Nd5 {[%emt 0:06:30]} Bg7 {[%emt 0:01:30]} 8. g4 {[%emt 0:00:00]} Be6 {[%emt 0:06:30]} 9. Ne3 {[%emt 0:16:00]} Bxc4 {[%emt 0:02:30]} 10. Nxc4 {[%emt 0:00:30]} d5 {[%emt 0:01:30]} 11. Ncxe5 {[%emt 0:04:30]} Nxe5 {[%emt 0:20:30]} 12. Nxe5 {[%emt 0:00:30]} Qe7 {[%emt 0:00:00]} 13. Nf3 {[%emt 0:11:30]} dxe4 {[%emt 0:00:00]} 14. O-O {[%emt 0:05:30]} O-O-O {[%emt 0:00:00]} 15. Qe2 Rhe8 {[%emt 0:00:00]} 16. Re1 {[%emt 0:10:00]} Qe6 {[%emt 0:07:30]} 17. dxe4 {[%emt 0:05:30]} Nxe4 {[%emt 0:03:30]} 18. c3 {[%emt 0:02:30]} Qc6 19. Be3 {[%emt 0:02:30]} f5 {[%emt 0:14:00]} 20. gxf5 {[%emt 0:00:00]} Nd6 {[%emt 0:06:30]} 21. Rad1 {[%emt 0:09:16]} Nxf5 {[%emt 0:09:30]} 22. Rxd8+ {[%emt 0:02:13]} Rxd8 {[%emt 0:00:30]} 23. Bxa7 {[%emt 0:01:29]} b6 {[%emt 0:00:30]} 24. Qa6+ {[%emt 0:03:37]} Qb7 {[%emt 0:00:30]} 25. Qe2 Qc6 26. Qa6+ {[%emt 0:00:43]} Qb7 {[%emt 0:01:00]} 27. Qe2 {[%emt 0:00:32]} Qc6 28. Qa6+ Kd7 1/2-1/2

[Event "41st Arco Open 2019"]
[Site "Arco"]
[Date "2019.10.05"]
[Round "2"]
[White "Caruso, Daniele"]
[Black "Fecker, Noah"]
[Result "0-1"]
[ECO "A04"]
[WhiteElo "1989"]
[BlackElo "2240"]
[Annotator "ChessBase"]
[PlyCount "54"]
[EventDate "2019.10.04"]
[EventType "swiss"]
[EventCountry "ITA"]
[SourceTitle "playchess.com"]
[Source "ChessBase"]
[SourceQuality "1"]
[TimeControl "40/5400+30:1800+30"]

1. Nf3 {[%emt 0:00:30]} c5 {[%emt 0:00:30]} 2. b3 {[%emt 0:02:30]} d6 {[%emt 0:02:30]} 3. Bb2 {[%emt 0:00:30]} e5 {[%emt 0:01:30]} 4. e3 {[%emt 0:06:30]} Nf6 5. Bb5+ {[%emt 0:03:30]} Bd7 {[%emt 0:14:00]} 6. Bxd7+ {[%emt 0:06:30]} Qxd7 {[%emt 0:01:30]} 7. O-O {[%emt 0:00:00]} Be7 {[%emt 0:03:30]} 8. d4 {[%emt 0:00:00]} cxd4 {[%emt 0:05:30]} 9. exd4 {[%emt 0:00:00]} e4 10. Nfd2 {[%emt 0:02:00]} O-O {[%emt 0:05:00]} 11. Re1 {[%emt 0:02:30]} d5 12. c4 {[%emt 0:00:30]} Bb4 {[%emt 0:06:00]} 13. Nc3 Bxc3 {[%emt 0:00:30]} 14. Bxc3 {[%emt 0:02:00]} Nc6 {[%emt 0:02:30]} 15. cxd5 Qxd5 {[%emt 0:02:30]} 16. Nc4 {[%emt 0:11:00]} Rad8 17. Ne3 {[%emt 0:01:30]} Qg5 {[%emt 0:08:00]} 18. d5 {[%emt 0:07:30]} Nxd5 19. Nxd5 {[%emt 0:02:30]} Rxd5 {[%emt 0:06:00]} 20. Qe2 {[%emt 0:12:30]} Rd3 {[%emt 0:02:30]} 21. Rac1 {[%emt 0:00:00]} f5 {[%emt 0:02:30]} 22. Kh1 {[%emt 0:01:00]} Rfd8 {[%emt 0:06:30]} 23. g4 {[%emt 0:04:30]} Rh3 24. Rg1 {[%emt 0:01:30]} Rdd3 {[%emt 0:11:00]} 25. gxf5 {[%emt 0:02:30]} Rxh2+ {[%emt 0:00:30]} 26. Kxh2 {[%emt 0:00:00]} Qh4+ {[%emt 0:00:00]} 27. Kg2 {[%emt 0:00:00]} Qh3# {[%emt 0:00:00]} 0-1